bitfinex/quotes_BTCUSD_20240918
["timestamp","ask_amount","ask_price","bid_price","bid_amount"]
[1726691055626,0.001021,59979.0,59978.0,0.96784603]
[1726691055855,0.001021,59979.0,59978.0,0.98184603]
[1726691056077,0.001021,59979.0,59978.0,0.93435603]
[1726691056509,0.001021,59979.0,59978.0,0.94835603]
[1726691057621,0.001021,59979.0,59978.0,1.48876569]
[1726691057834,0.001021,59979.0,59978.0,1.51176569]
[1726691058296,0.001021,59979.0,59978.0,1.77481936]
[1726691058736,0.001021,59979.0,59978.0,2.10827436]
[1726691059182,0.001021,59979.0,59978.0,2.09427436]
[1726691059402,0.001021,59979.0,59978.0,2.10827436]
[1726691059617,0.001021,59979.0,59978.0,2.15820848]
[1726691060048,0.001021,59979.0,59978.0,1.82475348]
[1726691060292,0.001021,59979.0,59978.0,1.81075348]
[1726691060517,0.001021,59979.0,59978.0,2.15820848]
[1726691060939,0.001021,59979.0,59978.0,2.15200233]
[1726691061201,0.001021,59979.0,59978.0,2.16600233]
[1726691061387,0.001021,59979.0,59978.0,1.83254733]
[1726691063169,0.001021,59979.0,59978.0,3.09674733]
[1726691065179,0.001021,59979.0,59978.0,3.42820233]
[1726691065453,0.001021,59979.0,59978.0,2.92389981]
[1726691065659,0.001021,59979.0,59978.0,2.87396569]
[1726691067217,0.001021,59979.0,59978.0,3.20742069]
[1726691067431,0.001021,59979.0,59978.0,3.25735481]
[1726691067643,0.001021,59979.0,59978.0,3.20742069]
[1726691068365,0.001021,59979.0,59978.0,2.10827436]
[1726691068580,0.001021,59979.0,59978.0,2.11027436]
[1726691068825,0.001021,59979.0,59978.0,2.16019474]
[1726691069028,0.001021,59979.0,59978.0,2.15819474]
[1726691071745,0.001021,59979.0,59978.0,2.10827436]
[1726691073427,0.001021,59979.0,59978.0,1.94522069]
[1726691073683,0.001021,59979.0,59978.0,2.17550422]
[1726691073888,0.001021,59979.0,59978.0,2.15818546]
[1726691074164,0.001021,59979.0,59978.0,3.43775162]
[1726691074367,0.001021,59979.0,59978.0,3.63694534]
[1726691074586,0.001021,59979.0,59978.0,3.71160385]
[1726691074841,0.001021,59979.0,59978.0,3.76663779]
[1726691075052,0.001021,59979.0,59978.0,3.91380942]
[1726691075277,0.001021,59979.0,59978.0,4.24726442]
[1726691075523,0.001021,59979.0,59978.0,4.23326442]
[1726691075733,0.001021,59979.0,59978.0,4.24726442]
[1726691076153,0.001021,59979.0,59978.0,4.23326442]
[1726691076364,0.001021,59979.0,59978.0,4.24726442]
[1726691076558,0.001021,59979.0,59978.0,4.23326442]
[1726691077020,0.001021,59979.0,59978.0,4.24726442]
[1726691078078,0.001021,59979.0,59978.0,3.91391292]
[1726691080239,0.001021,59979.0,59978.0,4.24736792]
[1726691081297,0.001021,59979.0,59978.0,4.24738059]
[1726691082040,0.001021,59979.0,59978.0,4.5963875]
[1726691082297,0.001021,59979.0,59978.0,3.34046093]
[1726691082520,0.001021,59979.0,59978.0,3.59644665]
[1726691082763,0.001021,59979.0,59978.0,3.49654676]
[1726691082997,0.001021,59979.0,59978.0,3.57149292]
[1726691083310,0.001021,59979.0,59978.0,0.94835603]
[1726691083541,0.259846,59979.0,59978.0,0.014]
[1726691083778,0.259846,59979.0,59973.0,0.001642]
[1726691083779,0.166728,59978.0,59974.0,0.166737]
[1726691084070,0.166728,59978.0,59973.0,0.001642]
[1726691084341,0.35957606,59986.0,59973.0,0.001642]
[1726691084342,0.14794738,60016.0,60002.0,0.666644]
[1726691084577,0.14794738,60016.0,60002.0,0.03]
[1726691084578,1.0004085,60003.0,60002.0,0.03]
[1726691084898,1.0004085,60003.0,59986.0,0.002]
[1726691084899,0.1807,60002.0,59979.0,0.12492996]
[1726691085128,0.17346466,59987.0,59971.0,0.04997198]
[1726691085601,0.17346466,59987.0,59967.0,0.06]
[1726691085602,1.24629481,60003.0,59966.0,0.031642]
[1726691085603,0.17346466,59980.0,59966.0,0.031642]
[1726691085604,0.333456,59978.0,59973.0,0.001542]
[1726691085895,0.06526281,59977.0,59973.0,0.001542]
[1726691086093,0.0941,59976.0,59973.0,0.001542]
[1726691086316,0.0941,59976.0,59974.0,0.256738]
[1726691086317,0.0873,59975.0,59974.0,0.256738]
[1726691086563,1.0004085,59984.0,59981.0,0.03]
[1726691086801,1.0004085,59984.0,59983.0,0.03]
[1726691087061,1.06518489,59984.0,59983.0,0.03]
[1726691087321,0.06477639,59984.0,59983.0,0.03]
[1726691087836,0.0873,59987.0,59983.0,0.09]
[1726691088073,0.15186795,59987.0,59984.0,0.03]
[1726691088340,0.15186795,59987.0,59984.0,0.032]
[1726691088841,0.15186795,59987.0,59984.0,0.03]
[1726691089076,0.15186795,59987.0,59983.0,0.03]
[1726691089077,1.06490698,59986.0,59983.0,0.03]
[1726691089318,1.06490698,59986.0,59983.0,0.034]
[1726691089319,0.06449848,59986.0,59983.0,0.034]
[1726691089563,0.06449848,59986.0,59983.0,0.03]
[1726691089836,0.06449848,59986.0,59984.0,0.03]
[1726691091193,0.06449848,59986.0,59983.0,0.03]
[1726691091650,0.06449848,59986.0,59984.0,0.03]
[1726691091881,0.06531948,59986.0,59984.0,0.03]
[1726691092093,0.06531948,59986.0,59984.0,0.031]
[1726691092325,0.06531948,59986.0,59984.0,0.03]
[1726691093002,0.06531948,59986.0,59976.0,0.06342]
[1726691093240,0.06531948,59986.0,59973.0,0.061542]
[1726691093241,0.26846466,59982.0,59973.0,0.001542]
[1726691093468,0.26846466,59982.0,59975.0,0.03]
[1726691093469,0.06561027,59981.0,59975.0,0.03]
[1726691094124,0.23232927,59981.0,59973.0,0.031542]
[1726691094347,0.23232927,59981.0,59975.0,0.03]
[1726691095514,0.23232927,59981.0,59976.0,0.009]
[1726691095991,0.166722,59980.0,59976.0,0.009]
[1726691096210,0.06554078,59979.0,59976.0,0.009]
[1726691096428,0.06554078,59979.0,59975.0,0.03]
[1726691096652,0.06554078,59979.0,59975.0,0.033]
[1726691096879,0.06554078,59979.0,59975.0,0.03]
[1726691097470,0.06554078,59979.0,59976.0,0.004]
[1726691098348,0.06554078,59979.0,59975.0,0.03]
[1726691098836,0.06554078,59979.0,59975.0,0.201733]
[1726691099073,0.06554078,59979.0,59975.0,0.03]
[1726691099310,0.06554078,59979.0,59976.0,0.009]
[1726691099542,0.06554078,59979.0,59975.0,0.03]
[1726691100026,0.06554078,59979.0,59975.0,0.043]
[1726691100263,0.06554078,59979.0,59975.0,0.032]
[1726691100510,0.000821,59986.0,59985.0,0.196708]
[1726691100755,1.0663561,59986.0,59985.0,0.530124]
[1726691101006,0.000821,59986.0,59985.0,0.89354]
[1726691101252,0.000821,59986.0,59985.0,1.256956]
[1726691101700,0.000821,59986.0,59985.0,1.258956]
[1726691102641,0.000821,59986.0,59985.0,1.662792]
[1726691103388,0.000821,59986.0,59985.0,1.648792]
[1726691103610,0.000821,59986.0,59985.0,0.95896]
[1726691104062,0.000821,59986.0,59985.0,0.639544]
[1726691104294,0.000821,59986.0,59985.0,0.044]
[1726691104521,0.000821,59986.0,59985.0,0.210708]
[1726691104735,0.000821,59986.0,59985.0,0.212708]
[1726691104947,0.000821,59986.0,59985.0,0.546124]
[1726691105172,0.000821,59986.0,59985.0,0.532124]
[1726691105395,0.000821,59986.0,59985.0,0.93954]
[1726691105618,0.000821,59986.0,59985.0,1.272956]
[1726691105849,0.000821,59986.0,59985.0,0.92554]
[1726691106299,0.000821,59986.0,59985.0,0.93954]
[1726691106507,0.000821,59986.0,59985.0,0.92554]
[1726691106928,0.000821,59986.0,59985.0,0.93954]
[1726691107636,0.000821,59986.0,59985.0,0.044]
[1726691108062,0.000821,59986.0,59985.0,0.074]
[1726691108278,0.000821,59986.0,59985.0,0.210708]
[1726691108496,0.000821,59986.0,59985.0,0.407416]
[1726691108711,0.000821,59986.0,59985.0,0.576124]
[1726691108969,0.000821,59986.0,59985.0,0.606124]
[1726691109186,0.000821,59986.0,59985.0,0.074]
[1726691109403,0.000821,59986.0,59985.0,0.106]
[1726691109614,0.000821,59986.0,59985.0,0.046]
[1726691110313,0.000821,59986.0,59985.0,0.074]
[1726691110543,0.000821,59986.0,59985.0,0.044]
[1726691111047,0.000821,59986.0,59985.0,0.212708]
[1726691111299,0.000821,59986.0,59985.0,0.046]
[1726691111526,0.000821,59986.0,59985.0,0.546124]
[1726691111755,0.000821,59986.0,59985.0,0.90954]
[1726691112435,0.000821,59986.0,59985.0,0.93954]
[1726691112651,0.000821,59986.0,59985.0,0.606124]
[1726691113102,0.000821,59986.0,59985.0,0.93954]
[1726691113542,0.000821,59986.0,59985.0,0.044]
[1726691113779,0.98974648,59986.0,59985.0,0.014]
[1726691114003,0.98974648,59986.0,59973.0,0.001542]
[1726691114004,0.333469,59976.0,59973.0,0.001542]
[1726691114247,0.500215,59974.0,59973.0,0.001542]
[1726691114466,0.89985828,59974.0,59973.0,0.001542]
[1726691115551,0.56638128,59974.0,59973.0,0.001542]
[1726691115996,0.56638128,59974.0,59973.0,0.003542]
[1726691116498,0.56638128,59974.0,59973.0,0.001542]
[1726691116958,0.89985828,59974.0,59973.0,0.001542]
[1726691117176,0.89985828,59974.0,59973.0,0.002542]
[1726691118461,0.89985828,59974.0,59973.0,0.001542]
[1726691118673,0.89985828,59974.0,59973.0,0.002542]
[1726691119113,0.89985828,59974.0,59973.0,0.001542]
[1726691119366,0.90185828,59974.0,59973.0,0.001542]
[1726691120017,0.06816628,59974.0,59973.0,0.001542]
[1726691120233,0.23490428,59974.0,59973.0,0.001542]
[1726691121129,0.56838128,59974.0,59973.0,0.001542]
[1726691121345,0.23490428,59974.0,59973.0,0.001542]
[1726691121578,0.23290428,59974.0,59973.0,0.001542]
[1726691121843,0.56638128,59974.0,59973.0,0.005542]
[1726691122751,0.89985828,59974.0,59973.0,0.005542]
[1726691123453,0.06616628,59974.0,59973.0,0.005542]
[1726691124165,0.25006043,59985.0,59978.0,0.03]
[1726691124396,0.25006043,59985.0,59981.0,0.09]
[1726691124397,0.06540179,59984.0,59981.0,0.09]
[1726691124626,0.06540179,59984.0,59983.0,0.03]
[1726691124856,0.000821,59986.0,59983.0,0.03]
[1726691125080,1.00031677,59985.0,59983.0,0.03]
[1726691125319,0.000821,59986.0,59983.0,0.03]
[1726691125536,0.166711,59984.0,59983.0,0.03]
[1726691125759,0.166715,59983.0,59982.0,0.03]
[1726691125971,0.06484588,59983.0,59982.0,0.03]
[1726691126474,0.06484588,59983.0,59982.0,0.196716]
[1726691126695,0.06484588,59983.0,59982.0,0.032]
[1726691127374,0.000821,59985.0,59982.0,0.032]
[1726691127613,0.000821,59985.0,59983.0,0.03]
[1726691127614,0.06559739,59985.0,59983.0,0.03]
[1726691127844,0.06559739,59985.0,59983.0,0.196713]
[1726691128814,0.06659739,59985.0,59984.0,0.502133]
[1726691129045,0.06659739,59985.0,59983.0,0.198712]
[1726691129277,0.06759739,59985.0,59983.0,0.205712]
[1726691130273,0.002821,59985.0,59984.0,0.198711]
[1726691130498,0.002821,59985.0,59984.0,0.532133]
[1726691130947,0.002821,59985.0,59984.0,0.196711]
[1726691131436,0.002821,59985.0,59984.0,0.03]
[1726691131657,0.000821,59985.0,59984.0,0.03]
[1726691131880,0.000821,59985.0,59984.0,0.203711]
[1726691131881,0.001821,59985.0,59984.0,0.203711]
[1726691132301,0.001821,59985.0,59984.0,0.037]
[1726691132618,0.06645844,59985.0,59984.0,0.037]
[1726691133997,0.23316644,59985.0,59984.0,0.037]
[1726691134501,0.06645844,59985.0,59984.0,0.037]
[1726691134717,0.06645844,59985.0,59984.0,0.203711]
[1726691134933,0.06645844,59985.0,59984.0,0.037]
[1726691136001,0.06645844,59985.0,59984.0,0.203711]
[1726691136216,0.06645844,59985.0,59984.0,0.039]
[1726691136440,0.06645844,59985.0,59984.0,0.037]
[1726691137247,0.06545844,59985.0,59984.0,0.196711]
[1726691137605,0.06545844,59985.0,59984.0,0.206711]
[1726691137830,0.06545844,59985.0,59984.0,0.196711]
[1726691138045,0.06545844,59985.0,59984.0,0.04]
[1726691138477,0.06545844,59985.0,59984.0,0.03]
[1726691138682,0.06545844,59985.0,59984.0,0.04]
[1726691139385,0.06545844,59985.0,59984.0,0.01]
[1726691139386,0.89899844,59985.0,59984.0,0.01]
[1726691139647,0.500215,59974.0,59973.0,0.001542]
[1726691139879,0.89985828,59974.0,59973.0,0.001542]
[1726691141309,1.23533528,59974.0,59973.0,0.001542]
[1726691141547,1.23333528,59974.0,59973.0,0.001542]
[1726691141779,1.23533528,59974.0,59973.0,0.001542]
[1726691142263,1.23333528,59974.0,59973.0,0.001542]
[1726691142497,1.24116718,59974.0,59973.0,0.001542]
[1726691143548,0.90185828,59974.0,59973.0,0.001542]
[1726691144052,0.89985828,59974.0,59973.0,0.001542]
[1726691144307,0.90085828,59974.0,59973.0,0.001542]
[1726691144563,0.89985828,59974.0,59973.0,0.001542]
[1726691145325,0.89985828,59974.0,59973.0,0.168283]
[1726691145326,0.09233259,59974.0,59973.0,0.168283]
[1726691145576,0.06616628,59974.0,59973.0,0.003542]
[1726691146073,0.06616628,59974.0,59973.0,0.033542]
[1726691146552,0.02698489,59985.0,59979.0,0.333449]
[1726691146798,0.02698489,59985.0,59983.0,0.53014]
[1726691146799,0.000821,59985.0,59983.0,0.53014]
[1726691147010,0.000821,59985.0,59982.0,0.06]
[1726691147011,0.000821,59985.0,59984.0,0.258711]
[1726691147241,0.000821,59985.0,59984.0,0.925555]
[1726691148651,0.000821,59985.0,59984.0,0.590133]
[1726691149983,0.000821,59985.0,59984.0,0.592133]
[1726691150434,0.001821,59985.0,59984.0,0.606133]
[1726691150647,0.001821,59985.0,59984.0,0.941197]
[1726691150879,0.001821,59985.0,59984.0,0.272353]
[1726691151101,0.001821,59985.0,59984.0,0.105642]
[1726691151331,0.001821,59985.0,59984.0,0.272353]
[1726691151552,0.001821,59985.0,59984.0,0.605775]
[1726691152412,0.001821,59985.0,59984.0,0.607775]
[1726691153645,0.001821,59985.0,59984.0,0.941197]
[1726691154840,0.001821,59985.0,59984.0,0.105642]
[1726691155076,0.23316644,59985.0,59984.0,0.015642]
[1726691155359,0.06645844,59985.0,59984.0,0.015642]
[1726691155616,0.06645844,59985.0,59984.0,0.045642]
[1726691156535,0.99899844,59985.0,59984.0,0.001642]
[1726691156756,1.33341444,59985.0,59984.0,0.014642]
[1726691156982,1.38656319,59985.0,59984.0,0.014642]
[1726691157686,1.38556319,59985.0,59984.0,0.001642]
[1726691157875,1.38556319,59985.0,59984.0,0.002642]
[1726691158121,1.39339372,59985.0,59984.0,0.001642]
[1726691159031,1.90027438,59985.0,59984.0,0.001642]
[1726691159523,1.92643896,59985.0,59984.0,0.001642]
[1726691160223,2.08952454,59985.0,59984.0,0.001642]
[1726691161327,1.91605988,59985.0,59984.0,0.001642]
[1726691161544,0.9861423,59985.0,59984.0,0.001642]
[1726691162211,0.93299355,59985.0,59984.0,0.001642]
[1726691163856,1.36640955,59985.0,59984.0,0.001642]
[1726691164079,1.4195066,59985.0,59984.0,0.001642]
[1726691167128,0.3192586,59985.0,59984.0,0.001642]
[1726691167367,0.09162302,59985.0,59984.0,0.001642]
[1726691167584,0.06545844,59985.0,59984.0,0.001642]
[1726691168507,0.06545844,59985.0,59984.0,0.004642]
[1726691168711,0.23216644,59985.0,59984.0,0.004642]
[1726691168934,0.06545844,59985.0,59984.0,0.004642]
[1726691170389,0.81564704,59985.0,59984.0,0.004642]
[1726691170605,0.89899844,59985.0,59984.0,0.004642]
[1726691170816,0.59174478,59985.0,59984.0,0.004642]
[1726691171408,0.59174478,59985.0,59984.0,0.001642]
[1726691171614,0.92516078,59985.0,59984.0,0.001642]
[1726691171823,0.59174478,59985.0,59984.0,0.001642]
[1726691172028,0.92516078,59985.0,59984.0,0.001642]
[1726691172460,1.25857678,59985.0,59984.0,0.001642]
[1726691173363,1.35857678,59985.0,59984.0,0.003642]
[1726691173583,1.41169671,59985.0,59984.0,0.001642]
[1726691174436,1.74511271,59985.0,59984.0,0.001642]
[1726691174855,1.41954128,59985.0,59984.0,0.001642]
[1726691175706,1.07828071,59985.0,59984.0,0.001642]
[1726691175915,0.74486471,59985.0,59984.0,0.001642]
[1726691176347,0.69174478,59985.0,59984.0,0.001642]
[1726691176753,0.59174478,59985.0,59984.0,0.001642]
[1726691176961,0.92516078,59985.0,59984.0,0.001642]
[1726691177593,0.97824076,59985.0,59984.0,0.001642]
[1726691178030,0.64482476,59985.0,59984.0,0.001642]
[1726691178235,0.97824076,59985.0,59984.0,0.001642]
[1726691178867,0.64482476,59985.0,59984.0,0.001642]
[1726691179509,0.97824076,59985.0,59984.0,0.002642]
[1726691179716,0.64482476,59985.0,59984.0,0.001642]
[1726691180215,0.64482476,59985.0,59984.0,0.003642]
[1726691180449,0.64482476,59985.0,59984.0,0.001642]
[1726691181538,0.14470076,59985.0,59984.0,0.001642]
[1726691181787,0.000821,59985.0,59984.0,0.531775]
[1726691182029,0.000821,59985.0,59984.0,0.925197]
[1726691182238,0.000821,59985.0,59984.0,0.926197]
[1726691182679,0.000821,59985.0,59984.0,0.925197]
[1726691183145,0.001821,59985.0,59984.0,0.931197]
[1726691183368,0.15093616,60010.0,60001.0,0.002]
[1726691183580,0.1227567,60017.0,60005.0,0.166652]
[1726691183581,1.00015002,60007.0,60005.0,0.166652]
[1726691183789,1.00015002,60007.0,60006.0,0.002]
[1726691183998,0.02615575,60014.0,60006.0,0.002]
[1726691184234,0.05316107,60013.0,60010.0,0.166637]
[1726691184497,0.05316107,60013.0,60005.0,0.1216]
[1726691184498,0.333263,60013.0,60005.0,0.0916]
[1726691184749,0.333263,60013.0,60005.0,0.166652]
[1726691184750,0.166639,60010.0,60005.0,0.166652]
[1726691184999,0.166633,60012.0,60007.0,0.166646]
[1726691185730,0.02615575,60014.0,60004.0,0.1022]
[1726691185978,0.166631,60013.0,60008.0,0.166644]
[1726691186219,0.17064,60010.0,60004.0,0.46551]
[1726691186420,0.166642,60009.0,60004.0,0.166654]
[1726691186640,0.333273,60011.0,60002.0,0.393316]
[1726691186863,0.166644,60008.0,60004.0,0.002]
[1726691187082,0.166644,60008.0,60002.0,0.365316]
[1726691187294,0.166643,60009.0,60004.0,0.166653]
[1726691188175,0.06158141,60008.0,60004.0,0.166653]
[1726691188413,0.06158141,60008.0,60005.0,0.166652]
[1726691188622,0.06158141,60008.0,60007.0,0.166647]
[1726691189045,0.06158141,60008.0,60007.0,0.168647]
[1726691189257,0.06158141,60008.0,60007.0,0.501941]
[1726691189749,0.06158141,60008.0,60007.0,0.499941]
[1726691190201,0.06158141,60008.0,60005.0,0.499954]
[1726691190412,0.06158141,60008.0,60007.0,0.166647]
[1726691190618,0.06158141,60008.0,60007.0,0.171647]
[1726691191030,0.06158141,60008.0,60007.0,0.504941]
[1726691191234,0.06158141,60008.0,60007.0,0.171647]
[1726691191659,0.06158141,60008.0,60007.0,0.504941]
[1726691192119,0.06158141,60008.0,60007.0,0.506941]
[1726691192347,0.06158141,60008.0,60007.0,0.504941]
[1726691193489,0.06158141,60008.0,60007.0,0.506941]
[1726691193905,0.06158141,60008.0,60007.0,0.840235]
[1726691194341,0.06158141,60008.0,60007.0,0.506941]
[1726691196866,0.06240241,60008.0,60007.0,0.506941]
[1726691198622,0.06235241,60008.0,60007.0,0.506941]
[1726691199049,0.06235241,60008.0,60007.0,0.840235]
[1726691199275,0.06235241,60008.0,60007.0,0.506941]
[1726691199923,0.06235241,60008.0,60007.0,0.840235]
[1726691200346,0.06235241,60008.0,60007.0,0.506941]
[1726691201012,0.06235241,60008.0,60007.0,0.504941]
[1726691201218,0.06235241,60008.0,60007.0,0.506941]
[1726691202092,0.06235241,60008.0,60007.0,0.171647]
[1726691202320,0.06235241,60008.0,60007.0,0.504941]
[1726691202532,0.06235241,60008.0,60007.0,0.838235]
[1726691202748,0.06235241,60008.0,60007.0,0.840235]
[1726691203438,0.06235241,60008.0,60007.0,1.53599366]
[1726691203439,0.000821,60008.0,60007.0,1.53599366]
[1726691203695,0.000821,60008.0,60007.0,2.35900166]
[1726691203907,0.000821,60008.0,60007.0,2.02570766]
[1726691204558,0.000821,60008.0,60007.0,2.02070766]
[1726691204775,0.000821,60008.0,60007.0,1.502949]
[1726691204992,0.000821,60008.0,60007.0,1.490949]
[1726691205415,0.000821,60008.0,60007.0,1.504949]
[1726691205627,0.000821,60008.0,60007.0,1.67841366]
[1726691208444,0.000821,60008.0,60007.0,1.504949]
[1726691217181,0.000821,60008.0,60007.0,1.67841366]
[1726691217418,0.000821,60008.0,60007.0,2.19776133]
[1726691217897,0.000821,60008.0,60007.0,2.53105533]
[1726691218345,0.000821,60008.0,60007.0,2.20588675]
[1726691218571,0.000821,60008.0,60007.0,2.04283308]
[1726691218995,0.000821,60008.0,60007.0,3.30503308]
[1726691220982,0.000821,60008.0,60007.0,3.63832708]
[1726691221232,0.000821,60008.0,60007.0,3.30503308]
[1726691221474,0.000821,60008.0,60007.0,3.56808675]
[1726691221687,0.000821,60008.0,60007.0,3.90138075]
[1726691222402,0.000821,60008.0,60007.0,3.9527059]
[1726691223035,0.000821,60008.0,60007.0,3.90302275]
[1726691223253,0.000821,60008.0,60007.0,3.95276272]
[1726691223462,0.000821,60008.0,60007.0,3.97754748]
[1726691224345,0.000821,60008.0,60007.0,3.64425348]
[1726691224556,0.000821,60008.0,60007.0,3.91763091]
[1726691224778,0.000821,60008.0,60007.0,3.9178016]
[1726691224992,0.000821,60008.0,60007.0,4.2510956]
[1726691225521,0.000821,60008.0,60007.0,4.27598098]
[1726691225996,0.000821,60008.0,60007.0,3.94268698]
[1726691226462,0.000821,60008.0,60007.0,3.84314549]
[1726691226714,0.000821,60008.0,60007.0,4.17643949]
[1726691226942,0.000821,60008.0,60007.0,3.84314549]
[1726691228036,0.000821,60008.0,60007.0,2.94320774]
[1726691228253,0.000821,60008.0,60007.0,2.569791]
[1726691229103,0.000821,60008.0,60007.0,0.215709]
[1726691229331,0.56214557,60008.0,60007.0,0.015642]
[1726691229829,1.25486997,60008.0,60007.0,0.015642]
[1726691230060,0.92158197,60008.0,60007.0,0.015642]
[1726691230861,0.92158197,60008.0,60007.0,0.001642]
[1726691231355,0.25500597,60008.0,60007.0,0.001642]
[1726691231588,0.92158197,60008.0,60007.0,0.005642]
[1726691231833,1.25486997,60008.0,60007.0,0.005642]
[1726691232269,0.92158197,60008.0,60007.0,0.001642]
[1726691232521,0.92158197,60008.0,60007.0,0.002642]
[1726691233326,0.58829397,60008.0,60007.0,0.002642]
[1726691234399,0.25500597,60008.0,60007.0,0.002642]
[1726691234663,0.58829397,60008.0,60007.0,0.002642]
[1726691234908,0.08836197,60008.0,60007.0,0.002642]
[1726691235444,0.25500597,60008.0,60007.0,0.002642]
[1726691235719,0.58829397,60008.0,60007.0,0.002642]
[1726691236168,0.58829397,60008.0,60007.0,0.001642]
[1726691237116,0.08836197,60008.0,60007.0,0.001642]
[1726691237327,0.25500597,60008.0,60007.0,0.003642]
[1726691237758,0.25500597,60008.0,60007.0,0.001642]
[1726691237971,0.000821,60008.0,60007.0,0.865877]
[1726691239431,0.06221357,60008.0,60007.0,0.533583]
[1726691239845,0.06221357,60008.0,60007.0,0.001642]
[1726691240324,0.06221357,60008.0,60007.0,0.168289]
[1726691240552,0.06221357,60008.0,60007.0,0.001642]
[1726691240814,0.06221357,60008.0,60007.0,0.173289]
[1726691241041,0.06221357,60008.0,60007.0,0.168289]
[1726691241255,0.06221357,60008.0,60007.0,0.172289]
[1726691241484,0.06221357,60008.0,60007.0,0.170289]
[1726691241895,0.06221357,60008.0,60007.0,0.176289]
[1726691242102,0.06221357,60008.0,60007.0,0.170289]
[1726691242508,0.06221357,60008.0,60007.0,0.176289]
[1726691243392,0.06221357,60008.0,60007.0,0.509583]
[1726691243597,0.000821,60008.0,60007.0,0.932877]
[1726691243818,0.000821,60008.0,60007.0,0.926877]
[1726691244032,0.000821,60008.0,60007.0,0.932877]
[1726691244232,0.000821,60008.0,60007.0,0.926877]
[1726691244652,0.000821,60008.0,60007.0,0.932877]
[1726691244859,0.000821,60008.0,60007.0,0.926877]
[1726691245092,0.000821,60008.0,60007.0,0.937877]
[1726691245310,0.000821,60008.0,60007.0,0.935877]
[1726691245727,0.000821,60008.0,60007.0,0.102642]
[1726691245940,0.000821,60008.0,60007.0,0.269289]
[1726691246153,0.000821,60008.0,60007.0,0.602583]
[1726691246369,0.06221357,60008.0,60007.0,0.042642]
[1726691246591,0.06221357,60008.0,60007.0,0.012642]
[1726691246802,0.89543357,60008.0,60007.0,0.001642]
[1726691247020,0.06221357,60008.0,60007.0,0.179289]
[1726691247278,0.000821,60008.0,60007.0,0.181289]
[1726691247500,0.000821,60008.0,60007.0,1.271171]
[1726691248142,0.000821,60008.0,60007.0,0.937877]
[1726691248357,0.000821,60008.0,60007.0,0.572583]
[1726691248805,0.000821,60008.0,60007.0,0.542583]
[1726691249016,0.000821,60008.0,60007.0,0.544583]
[1726691249241,0.000821,60008.0,60007.0,0.877877]
[1726691249439,0.000821,60008.0,60007.0,0.544583]
[1726691249646,0.06221357,60008.0,60007.0,0.012642]
[1726691249881,0.22885757,60008.0,60007.0,0.012642]
[1726691250093,0.06221357,60008.0,60007.0,0.012642]
[1726691250531,0.06221357,60008.0,60007.0,0.179289]
[1726691251248,0.06221357,60008.0,60007.0,0.012642]
[1726691252140,1.22872157,60008.0,60007.0,0.012642]
[1726691253447,1.22872157,60008.0,60007.0,0.001642]
[1726691253648,1.22872157,60008.0,60007.0,0.002642]
[1726691253649,0.06221357,60008.0,60007.0,0.002642]
[1726691253867,0.06221357,60008.0,60007.0,0.004642]
[1726691254071,0.06221357,60008.0,60007.0,0.002642]
[1726691254923,0.06221357,60008.0,60007.0,0.004642]
[1726691255127,0.06221357,60008.0,60007.0,0.002642]
[1726691255342,0.06221357,60008.0,60007.0,0.004642]
[1726691256387,0.06221357,60008.0,60007.0,0.002642]
[1726691256592,0.06221357,60008.0,60007.0,0.004642]
[1726691257005,0.000821,60008.0,60007.0,0.927877]
[1726691257891,0.000821,60008.0,60007.0,0.594583]
[1726691258128,0.000821,60008.0,60007.0,0.927877]
[1726691258389,0.000821,60008.0,60007.0,1.23786166]
[1726691258658,0.000821,60008.0,60007.0,1.75720933]
[1726691258907,0.000821,60008.0,60007.0,2.28950333]
[1726691259674,0.000821,60008.0,60007.0,2.28850333]
[1726691259935,0.000821,60008.0,60007.0,3.56470333]
[1726691260885,0.000821,60008.0,60007.0,3.62265465]
[1726691261135,0.0002,60019.0,60018.0,0.092]
[1726691261392,0.0002,60019.0,60018.0,2.17338633]
[1726691261845,0.0002,60019.0,60018.0,2.27338633]
[1726691262523,0.000821,60026.0,60021.0,1.624892]
[1726691262746,0.000821,60026.0,60025.0,0.415017]
[1726691262949,0.000821,60026.0,60025.0,1.41792333]
[1726691263159,0.000821,60026.0,60025.0,2.08431133]
[1726691263565,0.000821,60026.0,60025.0,2.05431133]
[1726691263775,0.000821,60026.0,60025.0,2.08431133]
[1726691264410,0.000821,60026.0,60025.0,2.09831133]
[1726691264637,0.000821,60026.0,60025.0,2.08431133]
[1726691264845,0.000821,60026.0,60025.0,2.092437]
[1726691266135,0.000821,60026.0,60025.0,2.106437]
[1726691266348,0.000821,60026.0,60025.0,2.425631]
[1726691266552,0.000821,60026.0,60025.0,2.439631]
[1726691267463,0.000821,60026.0,60025.0,1.90638333]
[1726691267832,0.000821,60026.0,60025.0,1.92038333]
[1726691268905,0.000821,60026.0,60025.0,1.94338333]
[1726691269077,0.000821,60026.0,60025.0,3.19158333]
[1726691269294,0.000821,60026.0,60025.0,2.75026366]
[1726691269658,0.000821,60026.0,60025.0,2.76426366]
[1726691269887,0.000821,60026.0,60025.0,2.75026366]
[1726691270116,0.000821,60026.0,60025.0,1.50206366]
[1726691270326,0.000821,60026.0,60025.0,0.972405]
[1726691271994,0.000821,60026.0,60025.0,1.661793]
[1726691272258,0.000821,60026.0,60025.0,1.328599]
[1726691275902,0.000821,60026.0,60025.0,1.305599]
[1726691277017,0.000821,60026.0,60025.0,0.972405]
[1726691279876,0.000821,60026.0,60025.0,0.971405]
[1726691280302,0.000821,60026.0,60025.0,0.637211]
[1726691280517,0.000821,60026.0,60025.0,0.304017]
[1726691280725,0.000821,60026.0,60025.0,0.638211]
[1726691281357,0.000821,60026.0,60025.0,0.971405]
[1726691281626,0.000821,60026.0,60025.0,1.304599]